Cogmind - Beta 15 @@@ ROGUE MODE // 2025.10.15 @ 17:46:46 Player: Malady Result: Destroyed by S-10 Pest with Light Assault Rifle Performance ------------- Evolutions (1) 500 Regions Visited (3) 600 Robots Destroyed (18) 90 Value Destroyed (451) 451 Prototype IDs (0) 0 Alien Tech Used (0) 0 Bonus (0) 0 TOTAL SCORE: 1641 Bonus ------- None Cogmind --------- Core Integrity 0/400 Matter 300/300 Energy 100/100 System Corruption 0% Temperature Cool (6) Movement Core (50) Location -9/Materials Parts ------- > --- POWER (1) -------- (None) > --- PROPULSION (3) --- (None) > --- UTILITY (3) ------ (None) > --- WEAPON (2) ------- (None) > --- INVENTORY (5) ---- Ion Engine Large Storage Unit Peak State ------------ > --- POWER ------------ Ion Engine > --- PROPULSION ------- Light Treads Light Treads > --- UTILITY ---------- Large Matter Pod ECM Suite Light Armor Plating > --- WEAPON ----------- Beam Cannon Beam Cannon > --- INVENTORY -------- Ion Engine Large Storage Unit [Rating: 8] Favorites ----------- Power Ion Engine Engine Ion Engine Propulsion Light Treads Treads Light Treads Leg Aluminum Leg Utility ECM Suite Device ECM Suite Storage Large Matter Pod Protection Light Armor Plating Weapon Beam Cannon Energy Cannon Beam Cannon Ballistic Gun Light Assault Rifle Launcher Grenade Launcher Special Melee Weapon Datajack Build | -11 -10 -10 -9 ------- Run | Yrd Mat Min Mat Slots Evolved 2 | . . . 2 Power . | . . . . Propulsion 1 | . . . 1 Utility 1 | . . . 1 Weapon . | . . . . Parts Attached 17 | 7 8 . 2 Power 1 | 1 . . . Engine 1 | 1 . . . Core . | . . . . Reactor . | . . . . Propulsion 3 | 3 . . . Treads 2 | 2 . . . Leg 1 | 1 . . . Wheel . | . . . . Hover . | . . . . Flight . | . . . . Utility 6 | 1 4 . 1 Device 2 | . 2 . . Storage 3 | 1 2 . . Processor . | . . . . Hackware . | . . . . Protection 1 | . . . 1 Artifact . | . . . . Weapon 7 | 2 4 . 1 Energy Gun . | . . . . Energy Cannon 2 | . 2 . . Ballistic Gun 3 | 2 1 . . Ballistic Cannon . | . . . . Launcher 1 | . 1 . . Special Weapon . | . . . . Impact Weapon . | . . . . Slashing Weapon . | . . . . Piercing Weapon . | . . . . Special Melee Weapon 1 | . . . 1 Unidentified Prototypes . | . . . . Parts Lost 10 | . 2 . 8 Power 1 | . . . 1 Propulsion 2 | . . . 2 Utility 4 | . 1 . 3 Weapon 3 | . 1 . 2 Highest Loss Streak 8 | . 1 . 8 To Critical Strikes . | . . . . Average Backups 2 | 2 2 4 2 Power 1 | 1 1 1 1 Propulsion . | . . . . Utility 1 | . 1 3 1 Weapon . | . . . . Tool/Special . | . . . . Unused Backups 1 | . . . 1 Power 1 | . . . 1 Propulsion . | . . . . Utility . | . . . . Weapon . | . . . . Tool/Special . | . . . . Average Slot Usage (%) 87 | . 93 85 79 Engine 13 | . 14 14 9 Treads 26 | . 28 28 19 Device 11 | . 10 14 10 Storage 7 | . 10 . 10 Protection 1 | . . . 8 Energy Cannon 15 | . 5 28 17 Ballistic Gun 5 | . 12 . . Launcher 5 | . 10 . . Peak Build Rating 8 | 6 7 6 8 Average Rating 6 | 3 6 6 7 On Entrance 4 | . 6 6 6 Naked Turns 8 | . . . 8 Heaviest Build 32 | 12 32 13 19 Greatest Support 40 | 40 40 40 40 Greatest Overweight (x) . | . . . . Average Overweight (x) . | . . . . Largest Inventory Capacity 15 | 8 15 5 5 Average Capacity 6 | 6 8 5 5 Most Carried 5 | 5 5 4 3 Average Carried 2 | 2 2 4 2 Final Capacity 8 | 8 5 5 5 Final Carried 4 | 1 4 4 2 Class Distribution -------------------- 100% | Mutant Dominant Class ---------------- Mutant | -10/Materials Mutant | -10/Mines Mutant | -9/Materials Resources | -11 -10 -10 -9 ----------- Run | Yrd Mat Min Mat Matter Collected 500 | 199 144 91 66 Remotely . | . . . . Salvage Created 510 | . 319 31 160 Parts 29 | . 16 3 10 Haulers Intercepted 1 | . 1 . . Recyclers Shooed 1 | . 1 . . Parts Field Recycled . | . . . . Retrieved Matter . | . . . . Parts Self-Destructed . | . . . . Prevented . | . . . . Kills | -11 -10 -10 -9 ------- Run | Yrd Mat Min Mat Combat Hostiles Destroyed 13 | . 7 2 4 Melee 1 | . . . 1 Cannons 8 | . 3 2 3 AOE 4 | . 4 . . Classes Destroyed 6 | . 4 1 1 Hauler 1 | . 1 . . Recycler 1 | . 1 . . Operator 1 | . . . 1 Watcher 2 | . 1 . 1 Swarmer 4 | . . 2 2 Grunt 9 | . 7 . 2 Best Kill Streak 5 | . 5 2 3 Combat Bots Only 4 | . 4 2 3 Max Kills in Single Turn 2 | . 2 1 1 Gunslinging . | . . . . Exploded 1 | . 1 . . Melee 1 | . . . 1 Uniques/NPCs Destroyed . | . . . . Combat | -11 -10 -10 -9 -------- Run | Yrd Mat Min Mat Hostile Shots Fired 153 | . 30 5 118 Missed 33 | . 5 1 27 Hits 120 | . 25 4 91 Projectile 120 | . 25 4 91 Damage Taken 1282 | . 370 32 880 Core 547 | . 124 14 409 Absorbed by Shields . | . . . . Core Remaining (%) 72 | 100 . 44 . Volleys Fired 35 | . 15 2 18 Largest 2 | . 2 2 2 Hottest 120 | . 120 120 120 Shots Fired 51 | . 21 4 26 Gun . | . . . . Cannon 40 | . 10 4 26 Launcher 11 | . 11 . . Special . | . . . . Kinetic . | . . . . Thermal 40 | . 10 4 26 Explosive 11 | . 11 . . Electromagnetic . | . . . . Robot Hit Streak 5 | . 5 3 4 Robot Miss Streak 4 | . 1 1 4 Penetration Max . | . . . . Secondary Targets . | . . . . Shots Hit Robots 26 | . 10 3 13 Core Hits 32 | . 14 2 16 Critical Kills . | . . . . Critical Parts Destroyed . | . . . . Critical Strikes . | . . . . Melee Attacks . | . . . . Impact . | . . . . Slashing . | . . . . Piercing . | . . . . Sneak Attacks . | . . . . Combat Hostiles . | . . . . Follow-up Attacks . | . . . . Damage Inflicted 951 | . 580 53 318 Guns . | . . . . Cannons 458 | . 143 53 262 Explosions 427 | . 427 . . Melee . | . . . . Ramming 66 | . 10 . 56 Kinetic . | . . . . Thermal 458 | . 143 53 262 Explosive 427 | . 427 . . Electromagnetic . | . . . . Impact . | . . . . Slashing . | . . . . Piercing . | . . . . Highest Corruption . | . . . . Average Corruption . | . . . . Corruption Purged . | . . . . Corruption Blocked . | . . . . Overload Shots . | . . . . Overflow Damage 13 | . 13 . . Projectiles . | . . . . Explosions 13 | . 13 . . Melee . | . . . . Knockbacks . | . . . . Impact . | . . . . Kinetic . | . . . . Secondary . | . . . . Self-Inflicted Damage 64 | . 39 . 25 Shots 2 | . 2 . . Rammed 18 | . 3 1 14 Targets Rammed 18 | . 3 1 14 Kicked . | . . . . Crushed . | . . . . Highest Temperature 339 | . 247 120 339 Average Temperature 110 | . 105 62 119 Received Heat Transfer 450 | . 189 . 261 Siege Activations . | . . . . Martial Activations . | . . . . Shielding Activations . | . . . . Robots Disrupted . | . . . . Combat Hostiles . | . . . . Robots Corrupted . | . . . . Combat Hostiles . | . . . . Parts Fried . | . . . . Impact Corruptions . | . . . . Robots Melted . | . . . . Combat Hostiles . | . . . . Parts Melted 1 | . . . 1 Heat Transferred 962 | . 296 111 555 Parts Sabotaged . | . . . . Parts Stolen . | . . . . Parts Stripped . | . . . . Power Chain Reactions . | . . . . Alert | -11 -10 -10 -9 ------- Run | Yrd Mat Min Mat Maximum Alert Level . | . . . . Low Security (%) 100 | 100 100 100 100 Level 1 . | . . . . Level 2 . | . . . . Level 3 . | . . . . Level 4 . | . . . . Level 5 . | . . . . High Security . | . . . . Max Security . | . . . . Peak Influence 181 | . 181 114 50 Initial 64 | . . 64 . Average 29 | . 36 41 4 Influence Increases 467 | . 301 50 116 Destroy 0b10 Robot/C 260 | . 140 40 80 Destroy 0b10 Robot/NC 25 | . 15 . 10 Destroy Leader 56 | . 34 10 12 Successful Hack 32 | . 18 . 14 Disable Machine 15 | . 15 . . Destroy Structure 79 | . 79 . . Influence Decreases 447 | . 136 215 96 Entered New Map 101 | . . 101 . Time Decay 266 | . 116 114 36 Lost Part 80 | . 20 . 60 Squads Dispatched 4 | . 2 . 2 Investigation 2 | . . . 2 Extermination . | . . . . Reinforcement 2 | . 2 . . Assault . | . . . . Garrison . | . . . . Intercept . | . . . . Searches Triggered . | . . . . Construction Impeded . | . . . . Haulers Reinforced . | . . . . Active Scanning Responses . | . . . . Cargo Convoy Interrupts . | . . . . Stealth | -11 -10 -10 -9 --------- Run | Yrd Mat Min Mat Distress Signals 8 | . 5 . 3 Communications Jammed . | . . . . Distress Signals . | . . . . Times Spotted 50 | . 15 12 23 Peak Tracking Total 12 | . 5 12 10 Tactical Retreats 6 | . 4 . 2 Traps | -11 -10 -10 -9 ------- Run | Yrd Mat Min Mat Traps Triggered . | . . . . Indirectly . | . . . . Trap Hack Attempts . | . . . . Triggered . | . . . . Disarmed . | . . . . Reprogrammed . | . . . . Reused . | . . . . Traps Extracted . | . . . . Installed . | . . . . Triggered . | . . . . Machines | -11 -10 -10 -9 ---------- Run | Yrd Mat Min Mat Machines Disabled 1 | . 1 . . Max in Single Turn 1 | . 1 . . Machines Repaired . | . . . . Machines Dismantled . | . . . . Machines Sabotaged . | . . . . Overloaded Fab Kills . | . . . . Hacking | -11 -10 -10 -9 --------- Run | Yrd Mat Min Mat Machines Accessed 5 | . 3 . 2 Terminals 5 | . 3 . 2 Fabricators . | . . . . Repair Stations . | . . . . Recycling Units . | . . . . Scanalyzers . | . . . . Garrison Access . | . . . . Total Hacks 17 | . 7 . 10 Successful 11 | . 5 . 6 Failed 6 | . 2 . 4 Catastrophic 1 | . 1 . . Database Lockouts . | . . . . Manual . | . . . . Terminals 17 | . 7 . 10 Fabricators . | . . . . Repair Stations . | . . . . Recycling Units . | . . . . Scanalyzers . | . . . . Garrison Access . | . . . . Terminal Hacks 11 | . 5 . 6 Record 7 | . 2 . 5 Emergency Access Points 1 | . . . 1 Terminal Index 1 | . 1 . . Locate Traps 1 | . 1 . . Dispatch Records 1 | . 1 . . Fabricator Hacks . | . . . . Repair Station Hacks . | . . . . Recycling Unit Hacks . | . . . . Scanalyzer . | . . . . Garrison Access Hacks . | . . . . Unauthorized Hacks . | . . . . Terminals . | . . . . Fabricators . | . . . . Repair Stations . | . . . . Recycling Units . | . . . . Scanalyzers . | . . . . Garrison Access . | . . . . Data Cores Recovered . | . . . . Used . | . . . . Hacking Detections 5 | . 3 . 2 Full Trace Events 3 | . 1 . 2 Feedback Events . | . . . . Feedback Blocked . | . . . . Robot Schematics Acquired . | . . . . Robots Built . | . . . . Authchips . | . . . . Time . | . . . . Total Robot Build Rating . | . . . . Part Schematics Acquired . | . . . . Parts Built . | . . . . Authchips . | . . . . Time . | . . . . Total Part Build Rating . | . . . . Parts Repaired . | . . . . Time . | . . . . Parts Recycled . | . . . . Recycled Matter . | . . . . Retrieved Matter . | . . . . Retrieved Components . | . . . . Parts Scanalyzed . | . . . . Part Schematics Acquired . | . . . . Parts Damaged . | . . . . Bothacking | -11 -10 -10 -9 ------------ Run | Yrd Mat Min Mat Used RIF Installer . | . . . . Robots Hacked . | . . . . Non-combat . | . . . . Combat . | . . . . Robot Hacks Applied . | . . . . Relay Couplers Released . | . . . . Fabnet Peak Effective % . | . . . . Robots Rewired . | . . . . Allies Hacked . | . . . . Hacks Repelled . | . . . . Allies | -11 -10 -10 -9 -------- Run | Yrd Mat Min Mat Total Allies . | . . . . Largest Group . | . . . . Highest-Rated Group . | . . . . Highest-Rated Ally . | . . . . Total Orders . | . . . . Ally Attacks . | . . . . Total Damage . | . . . . Kills . | . . . . Allies Corrupted . | . . . . Allies Melted . | . . . . Intel | -11 -10 -10 -9 ------- Run | Yrd Mat Min Mat Active Infowar (turns) 808 | . 301 336 171 Terrain 74 | . 74 . . ECM 808 | . 301 336 171 Robot Analysis Total . | . . . . Derelict Logs Recovered . | . . . . Drone Launches . | . . . . Drone Recoveries . | . . . . Exploration | -11 -10 -10 -9 ------------- Run | Yrd Mat Min Mat Turns Passed 1076 | 73 482 336 185 Spaces Moved 588 | 47 259 206 76 Core 13 | 12 . . 1 Treads 568 | 28 259 206 75 Legs 7 | 7 . . . Wheels . | . . . . Hover . | . . . . Flight . | . . . . Fastest Speed 50 | 50 160 160 50 Average Speed 157 | 125 160 160 158 Slowest Speed 160 | 160 160 160 160 Overloaded Moves . | . . . . Propulsion Burnouts . | . . . . Robots Hopped . | . . . . Potential Cave-ins . | . . . . Cave-ins Triggered . | . . . . Exploration Rate (%) 27 | 3 46 50 9 Regions Visited 3 Branch Regions 1 Pre-discovered Areas . | . . . . Known Exits Taken . | . . . . Unknown Exits Taken 3 | 1 1 1 . Scrap Searched 1 | . . 1 . Spaces Dug . | . . . . Terrain Destroyed 88 | . 88 . . Melee . | . . . . Projectile . | . . . . AOE 88 | . 88 . . Terrain Rammed . | . . . . Walls Destroyed . | . . . . Machines Disabled . | . . . . Actions | -11 -10 -10 -9 --------- Run | Yrd Mat Min Mat Total 686 | 60 304 208 114 Wait 6 | . 5 . 1 Move 585 | 46 258 205 76 Hop . | . . . . Pick Up 17 | 6 10 . 1 Fast Attach 2 | 2 . . . Attach 11 | 5 4 . 2 Detach . | . . . . Swap 5 | . 4 . 1 Drop 7 | 1 5 . 1 Fire 35 | . 15 2 18 Melee . | . . . . Ram 13 | . . . 13 Kick . | . . . . Crush 5 | . 3 1 1 Escape Stasis . | . . . . Rewire . | . . . . Trap . | . . . . Miscellaneous . | . . . . Route ------- -11/Scrapyard -10/Materials -10/Mines -9/Materials History --------- Turn | Location | Event 9 | -11/Scrapyard | Discovered new exit (range 16) 74 | -11/Scrapyard | Entered Materials 321 | -10/Materials | Build established: Mutant 513 | -10/Materials | Discovered new exit (range 16) 556 | -10/Materials | Entered Mines 559 | -10/Mines | Core integrity fell below 50% 874 | -10/Mines | Discovered new exit (range 12) 875 | -10/Mines | Assembled infested the area 892 | -10/Mines | Entered Materials 892 | -9/Materials | Evolved 2 slots: Propulsion x1, Utility x1 1068 | -9/Materials | Core integrity fell below 50% 1073 | -9/Materials | Core integrity fell below 20% 1077 | -9/Materials | Destroyed by S-10 Pest with Light Assault Rifle Last Messages --------------- R-06 Scavenger collects Aluminum Leg. Slammed into S-10 Pest. K-01 Serf destroyed. Slammed into S-10 Pest. K-01 Serf collects debris. Slammed into G-34 Mercenary. Lrg. Matter Pod destroyed. Slammed into S-10 Pest. Slammed into G-34 Mercenary. K-01 Serf collects debris. Slammed into G-34 Mercenary. W-16 Scout sends out distress signal. Slammed into G-34 Mercenary. G-34 Mercenary destroyed. [Achievement: Fist Fight] Important note for Steam players: Cogmind player global achievement rates displayed by Steam are all significantly underreported, in some cases by a huge margin, due to how they are calculated by Valve. Map ----- +----------------------------------------------------+ | ?????????????????????????????????????????????????? | | ########?????????????????????????????????????????? | | +?????????????????????????????????????????? | | #?????????????????????????????????????????? | | #?????????????????????????????????????????? | | #?????????????????????????????????????????? | | #?????????????????????????????????????????? | | = #?????????????????????????????????????????? | | $%%#?????????????????????????????????????????? | | * #?????????????????????????????????????????? | | #?????????????????]???????????????????????? | | #???????????????? ]???????????????????????? | | ? ???????########??? ]???????????????????????? | | ??#+#????????# #??? ???????????????????????? | | ??# #????????# T #??? ???????????????????????? | | ??# #????????# #???? ""?????????????????????? | | ??# #????????# #???? ""?????????????????????? | | ??# #????????# #???? ""?????????????????????? | | ?##+#######??# ]#???? ?????????????????????? | | ?# #######/########+######### ?????????? | | ?# # w ?????????? | | ?# # "?????????? | | ?# # "?????????? | | ?# / ####T###### ######???????????????? | | ?# # #??###????#=* # #???????????????? | | ?# # #?????????#@%%# = #???????????????? | | ?# # #?????????#![ssggg #???????????????? | | ?# # #?????????# #gg%k#???????????????? | | ?########## #?????????# #= #???????????????? | | ??????????# #?????????# # " #???????????????? | | ??????????# #?????????# # T #???????????????? | | ????####### #?????????# r# " #???????????????? | | #?????????# # #???????????????? | | #?????????# ######???????????????? | | ###############?????????# #????????????????????? | | ????????????????????????+ #????????????????????? | | ????????????????????????# #????????????????????? | | ????????????????????????## ##????????????????????? | | ?????????????????????????# ??????????????????????? | | ?????????????????????????? ??????????????????????? | | ??????????????????????????u??????????????????????? | | ?????????????????????????? ??????????????????????? | | ?????????????????????????????????????????????????? | | ?????????????????????????????????????????????????? | | ?????????????????????????????????????????????????? | | ?????????????????????????????????????????????????? | | ?????????????????????????????????????????????????? | | ?????????????????????????????????????????????????? | | ?????????????????????????????????????????????????? | | | +----------------------------------------------------+ Best States ------------- Heat Dissipation 28 Energy Generation 10 Energy Capacity 250 Matter Stores 300 Matter Capacity 450 Sight Range 16 Terrain Scan Range 14 Terrain Scan Density 10 ECM Strength 1 Armor Coverage 150 Evasion (%) 50 Recoil Reduction 2 Item Schematics ----------------- None Robot Schematics ------------------ None Fabricated ------------ Nothing Repaired ---------- Nothing Alien Tech Used ----------------- None Achievements -------------- Fist Fight I Survived The Infestation Challenges ------------ None Game ------ Seed WardroneDynamicCyclogen Manual? 0 Play Time 00:15:36 Cumulative 2.2 hours Start 2025.10.15 @ 17:31:19 End 2025.10.15 @ 17:46:46 Sessions 1 Manual Loads 0 Difficulty Rogue Special Mode None Game No. 5 Rogue 4 Adventurer 1 Explorer 0 Win Type - Total 0 Types 0/0/0/0/0/0/0/0/0/0 Lore% 2 Gallery% 4 Achievement% 5 Wizard Run 0 Options --------- Layout 1 ASCII 0 Keyboard 0 Movement Mouse Keybinds 0 Fullscreen 1 Font 24/Smallcaps Map View 50x35 Zoom Use 0% Tactical HUD 0 Map Filters NONE Filters NONE Steam 1 RUN: a229b664-db79-44a8-9d5f-0fd25d264851